[Event "Rapid Tournament (RAP)"]
[Site "Biel, Switzerland"]
[Date "2026.07.12"]
[Round "5.12"]
[White "Pinson, Clement"]
[Black "Maier, Christian"]
[Result "1/2-1/2"]
[TimeControl "15 + 5"]
[WhiteTitle "-"]
[BlackTitle "-"]
[WhiteFideId "26098660"]
[BlackFideId "4601955"]
[WhiteElo "1924"]
[BlackElo "2314"]

1. e4 {[%clk 00:15:09]} e5 {[%clk 00:15:08]} {[%emt 00:00:03]} 2. Nf3 {[%clk
00:15:13]} {[%emt 00:00:01]} Nc6 {[%clk 00:15:11]} {[%emt 00:00:01]} 3. Bc4
{[%clk 00:15:16]} {[%emt 00:00:02]} Nf6 {[%clk 00:15:13]} {[%emt 00:00:03]} 4.
d3 {[%clk 00:15:20]} {[%emt 00:00:01]} Bc5 {[%clk 00:15:15]} {[%emt 00:00:03]}
5. c3 {[%clk 00:15:23]} {[%emt 00:00:02]} d6 {[%clk 00:15:18]} {[%emt
00:00:02]} 6. Bg5 {[%clk 00:15:26]} {[%emt 00:00:02]} h6 {[%clk 00:15:20]}
{[%emt 00:00:03]} 7. Bh4 {[%clk 00:15:30]} {[%emt 00:00:02]} a6 {[%clk
00:15:13]} {[%emt 00:00:12]} 8. Nbd2 {[%clk 00:15:30]} {[%emt 00:00:04]} O-O
{[%clk 00:14:49]} {[%emt 00:00:29]} 9. O-O {[%clk 00:14:12]} {[%emt 00:01:23]}
Re8 {[%clk 00:14:52]} {[%emt 00:00:03]} 10. b4 {[%clk 00:14:06]} {[%emt
00:00:11]} Ba7 {[%clk 00:14:54]} {[%emt 00:00:03]} 11. Re1 {[%clk 00:14:04]}
{[%emt 00:00:07]} Be6 {[%clk 00:14:48]} {[%emt 00:00:11]} 12. Bd5 {[%clk
00:13:55]} {[%emt 00:00:14]} g5 {[%clk 00:12:44]} {[%emt 00:02:08]} 13. Bxe6
{[%clk 00:13:58]} {[%emt 00:00:02]} Rxe6 {[%clk 00:12:45]} {[%emt 00:00:04]} 14.
Bg3 {[%clk 00:13:58]} {[%emt 00:00:05]} Ne7 {[%clk 00:12:31]} {[%emt 00:00:19]}
15. Nc4 {[%clk 00:13:42]} {[%emt 00:00:22]} Ng6 {[%clk 00:12:15]} {[%emt
00:00:20]} 16. Ne3 {[%clk 00:13:14]} {[%emt 00:00:33]} Bxe3 {[%clk 00:12:11]}
{[%emt 00:00:08]} 17. fxe3 {[%clk 00:13:13]} {[%emt 00:00:07]} a5 {[%clk
00:12:01]} {[%emt 00:00:16]} 18. a3 {[%clk 00:13:00]} {[%emt 00:00:18]} b5
{[%clk 00:10:40]} {[%emt 00:01:25]} 19. Qc2 {[%clk 00:12:59]} {[%emt 00:00:06]}
d5 {[%clk 00:10:36]} {[%emt 00:00:10]} 20. exd5 {[%clk 00:12:58]} {[%emt
00:00:05]} Qxd5 {[%clk 00:10:36]} {[%emt 00:00:05]} 21. d4 {[%clk 00:12:42]}
{[%emt 00:00:21]} e4 {[%clk 00:10:25]} {[%emt 00:00:16]} 22. Ne5 {[%clk
00:12:29]} {[%emt 00:00:19]} Nxe5 {[%clk 00:09:54]} {[%emt 00:00:36]} 23. dxe5
{[%clk 00:12:02]} {[%emt 00:00:32]} Ng4 {[%clk 00:09:32]} {[%emt 00:00:26]} 24.
Rad1 {[%clk 00:11:52]} {[%emt 00:00:15]} Qc6 {[%clk 00:09:29]} {[%emt
00:00:09]} 25. Rd4 {[%clk 00:11:25]} {[%emt 00:00:31]} axb4 {[%clk 00:09:05]}
{[%emt 00:00:30]} 26. axb4 {[%clk 00:11:23]} {[%emt 00:00:07]} Nxe5 {[%clk
00:08:39]} {[%emt 00:00:31]} 27. Qxe4 {[%clk 00:11:06]} {[%emt 00:00:21]} Rae8
{[%clk 00:07:45]} {[%emt 00:00:59]} 28. Qxc6 {[%clk 00:10:40]} {[%emt
00:00:31]} Rxc6 {[%clk 00:07:18]} {[%emt 00:00:32]} 29. Rd5 {[%clk 00:10:25]}
{[%emt 00:00:20]} f6 {[%clk 00:06:59]} {[%emt 00:00:24]} 30. Rxb5 {[%clk
00:10:15]} {[%emt 00:00:15]} Rxc3 {[%clk 00:07:03]} {[%emt 00:00:01]} 31. Rc5
{[%clk 00:09:49]} {[%emt 00:00:31]} Rxc5 {[%clk 00:06:54]} {[%emt 00:00:14]} 32.
bxc5 {[%clk 00:09:53]} Nd3 {[%clk 00:06:50]} {[%emt 00:00:09]} 33. Re2 {[%clk
00:08:36]} {[%emt 00:01:22]} c6 {[%clk 00:05:35]} {[%emt 00:01:20]} 34. Bd6
{[%clk 00:08:27]} {[%emt 00:00:14]} Re4 {[%clk 00:05:39]} 35. h3 {[%clk
00:08:16]} {[%emt 00:00:17]} Kf7 {[%clk 00:05:40]} {[%emt 00:00:04]} 36. Ra2
{[%clk 00:07:21]} {[%emt 00:01:00]} Rxe3 {[%clk 00:05:11]} {[%emt 00:00:33]} 37.
Ra7+ {[%clk 00:07:16]} {[%emt 00:00:11]} Kg6 {[%clk 00:05:13]} {[%emt
00:00:02]} 38. Rc7 {[%clk 00:06:53]} {[%emt 00:00:28]} Re1+ {[%clk 00:05:12]}
{[%emt 00:00:06]} 39. Kh2 {[%clk 00:06:56]} {[%emt 00:00:02]} Nb4 {[%clk
00:05:15]} {[%emt 00:00:02]} 40. Rb7 {[%clk 00:06:50]} {[%emt 00:00:11]} Re4
{[%clk 00:05:18]} {[%emt 00:00:02]} 41. g4 {[%clk 00:06:48]} {[%emt 00:00:07]}
h5 {[%clk 00:05:18]} {[%emt 00:00:05]} 42. Kg3 {[%clk 00:06:49]} {[%emt
00:00:04]} f5 {[%clk 00:04:16]} {[%emt 00:01:07]} 43. gxf5+ {[%clk 00:06:33]}
{[%emt 00:00:22]} Kxf5 {[%clk 00:04:20]} {[%emt 00:00:01]} 44. Rf7+ {[%clk
00:06:12]} {[%emt 00:00:26]} Kg6 {[%clk 00:04:17]} {[%emt 00:00:07]} 45. Rb7
{[%clk 00:06:09]} {[%emt 00:00:08]} Nd5 {[%clk 00:04:17]} {[%emt 00:00:05]} 46.
Rb8 {[%clk 00:05:57]} {[%emt 00:00:17]} Re3+ {[%clk 00:04:19]} {[%emt
00:00:04]} 47. Kg2 {[%clk 00:05:34]} {[%emt 00:00:28]} Kf5 {[%clk 00:03:49]}
{[%emt 00:00:35]} 48. Rf8+ {[%clk 00:05:21]} {[%emt 00:00:18]} Ke4 {[%clk
00:03:48]} {[%emt 00:00:06]} 49. Re8+ {[%clk 00:05:23]} {[%emt 00:00:02]} Kd4
{[%clk 00:03:49]} {[%emt 00:00:04]} 50. Rg8 {[%clk 00:05:20]} {[%emt 00:00:08]}
Nf4+ {[%clk 00:03:47]} {[%emt 00:00:08]} 51. Bxf4 {[%clk 00:05:07]} {[%emt
00:00:18]} gxf4 {[%clk 00:03:51]} {[%emt 00:00:01]} 52. Rf8 {[%clk 00:04:51]}
{[%emt 00:00:21]} f3+ {[%clk 00:03:23]} {[%emt 00:00:32]} 53. Kf2 {[%clk
00:04:48]} {[%emt 00:00:09]} Rc3 {[%clk 00:03:27]} 54. Rf4+ {[%clk 00:04:23]}
{[%emt 00:00:29]} Ke5 {[%clk 00:02:52]} {[%emt 00:00:40]} 55. Rh4 {[%clk
00:04:27]} Rxc5 {[%clk 00:01:45]} {[%emt 00:01:13]} 56. Rxh5+ {[%clk 00:04:30]}
{[%emt 00:00:01]} Kd4 {[%clk 00:01:49]} {[%emt 00:00:01]} 57. Rxc5 {[%clk
00:04:26]} {[%emt 00:00:09]} Kxc5 {[%clk 00:01:53]} 58. h4 {[%clk 00:04:23]}
{[%emt 00:00:08]} Kd5 {[%clk 00:01:57]} 59. Kxf3 {[%clk 00:04:14]} {[%emt
00:00:14]} 1/2-1/2

[Event "Rapid Tournament (RAP)"]
[Site "Biel, Switzerland"]
[Date "2026.07.12"]
[Round "5.13"]
[White "Lu, Miaoyi"]
[Black "Hornung, Hans"]
[Result "1-0"]
[TimeControl "15 + 5"]
[WhiteTitle "-"]
[BlackTitle "-"]
[WhiteFideId "8618020"]
[BlackFideId "4615140"]
[WhiteElo "2309"]
[BlackElo "2040"]

1. e4 {[%clk 00:15:09]} {[%emt 00:22:29]} c5 {[%clk 00:15:09]} {[%emt
00:00:02]} 2. c3 {[%clk 00:15:07]} {[%emt 00:00:07]} e6 {[%clk 00:15:07]}
{[%emt 00:00:06]} 3. Nf3 {[%clk 00:15:06]} {[%emt 00:00:06]} d5 {[%clk
00:14:57]} {[%emt 00:00:14]} 4. exd5 {[%clk 00:15:09]} {[%emt 00:00:03]} exd5
{[%clk 00:14:59]} {[%emt 00:00:03]} 5. Bb5+ {[%clk 00:15:13]} {[%emt 00:00:02]}
Bd7 {[%clk 00:14:52]} {[%emt 00:00:11]} 6. Qe2+ {[%clk 00:15:15]} {[%emt
00:00:04]} Be7 {[%clk 00:14:45]} {[%emt 00:00:11]} 7. d4 {[%clk 00:14:09]}
{[%emt 00:01:11]} Nf6 {[%clk 00:14:43]} {[%emt 00:00:07]} 8. Bxd7+ {[%clk
00:13:36]} {[%emt 00:00:38]} Nbxd7 {[%clk 00:14:41]} {[%emt 00:00:07]} 9. O-O
{[%clk 00:13:35]} {[%emt 00:00:07]} O-O {[%clk 00:14:35]} {[%emt 00:00:10]} 10.
Bf4 {[%clk 00:12:57]} {[%emt 00:00:44]} Re8 {[%clk 00:14:15]} {[%emt 00:00:24]}
11. Qc2 {[%clk 00:12:52]} {[%emt 00:00:10]} Rc8 {[%clk 00:13:41]} {[%emt
00:00:38]} 12. Nbd2 {[%clk 00:12:43]} {[%emt 00:00:15]} Qb6 {[%clk 00:12:06]}
{[%emt 00:01:41]} 13. a4 {[%clk 00:11:27]} {[%emt 00:01:21]} cxd4 {[%clk
00:11:53]} {[%emt 00:00:17]} 14. a5 {[%clk 00:11:31]} {[%emt 00:00:02]} Qa6
{[%clk 00:10:35]} {[%emt 00:01:22]} 15. Nxd4 {[%clk 00:11:34]} {[%emt
00:00:02]} Bc5 {[%clk 00:10:24]} {[%emt 00:00:16]} 16. N2b3 {[%clk 00:09:04]}
{[%emt 00:02:35]} Ne4 {[%clk 00:08:49]} {[%emt 00:01:40]} 17. Nxc5 {[%clk
00:08:15]} {[%emt 00:00:55]} Ndxc5 {[%clk 00:08:43]} {[%emt 00:00:09]} 18. f3
{[%clk 00:07:53]} {[%emt 00:00:29]} Nf6 {[%clk 00:08:28]} {[%emt 00:00:19]} 19.
Rfd1 {[%clk 00:06:26]} {[%emt 00:01:33]} h6 {[%clk 00:08:21]} {[%emt 00:00:11]}
20. Qd2 {[%clk 00:05:39]} {[%emt 00:00:53]} Ne6 {[%clk 00:07:50]} {[%emt
00:00:35]} 21. Be3 {[%clk 00:04:10]} {[%emt 00:01:35]} Nh7 {[%clk 00:07:19]}
{[%emt 00:00:35]} 22. Nf5 {[%clk 00:03:50]} {[%emt 00:00:26]} Nhf8 {[%clk
00:06:37]} {[%emt 00:00:46]} 23. Qxd5 {[%clk 00:03:15]} {[%emt 00:00:41]} Rcd8
{[%clk 00:06:16]} {[%emt 00:00:25]} 24. Nd6 {[%clk 00:02:53]} {[%emt 00:00:27]}
Nc7 {[%clk 00:05:37]} {[%emt 00:00:44]} 25. Qxf7+ {[%clk 00:02:55]} {[%emt
00:00:04]} Kh8 {[%clk 00:05:14]} {[%emt 00:00:28]} 26. Nxe8 {[%clk 00:02:14]}
{[%emt 00:00:46]} Rxe8 {[%clk 00:05:11]} {[%emt 00:00:08]} 27. Qxc7 {[%clk
00:01:40]} {[%emt 00:00:39]} Rxe3 {[%emt 00:00:12]} 28. Rd8 {[%clk 00:01:38]}
Qf6 {[%clk 00:05:04]} {[%emt 00:00:11]} 29. Qb8 {[%clk 00:01:02]} {[%emt
00:00:41]} Kg8 {[%clk 00:04:59]} {[%emt 00:00:10]} 30. Rad1 {[%clk 00:01:05]}
{[%emt 00:00:02]} 1-0

[Event "Rapid Tournament (RAP)"]
[Site "Biel, Switzerland"]
[Date "2026.07.12"]
[Round "5.14"]
[White "Balabayeva, Xeniya"]
[Black "Haugner, Jan"]
[Result "1-0"]
[TimeControl "15 + 5"]
[WhiteTitle "-"]
[BlackTitle "-"]
[WhiteFideId "13719688"]
[BlackFideId "24655244"]
[WhiteElo "2291"]
[BlackElo "2079"]

1. d4 {[%clk 00:15:09]} {[%emt 00:00:01]} d5 {[%clk 00:15:10]} {[%emt
00:00:03]} 2. Nf3 {[%clk 00:15:12]} e6 {[%clk 00:15:14]} 3. Bf4 {[%clk
00:15:15]} {[%emt 00:00:02]} Nf6 {[%clk 00:15:16]} {[%emt 00:00:03]} 4. e3
{[%clk 00:15:19]} {[%emt 00:00:01]} c5 {[%clk 00:15:20]} {[%emt 00:00:02]} 5.
c3 {[%clk 00:15:15]} {[%emt 00:00:09]} Nc6 {[%clk 00:15:23]} {[%emt 00:00:02]}
6. Nbd2 {[%clk 00:15:17]} {[%emt 00:00:03]} cxd4 {[%clk 00:15:27]} {[%emt
00:00:01]} 7. exd4 {[%clk 00:15:20]} {[%emt 00:00:03]} Nh5 {[%clk 00:15:31]} 8.
Be3 {[%clk 00:15:21]} {[%emt 00:00:03]} Bd6 {[%clk 00:15:31]} {[%emt 00:00:05]}
9. Bb5 {[%clk 00:15:23]} {[%emt 00:00:04]} Nf4 {[%clk 00:14:49]} {[%emt
00:00:46]} 10. O-O {[%clk 00:14:35]} {[%emt 00:00:52]} Ng6 {[%clk 00:14:54]}
{[%emt 00:00:02]} 11. Re1 {[%clk 00:13:48]} {[%emt 00:00:52]} O-O {[%clk
00:14:57]} {[%emt 00:00:02]} 12. a4 {[%clk 00:13:01]} {[%emt 00:00:52]} Bd7
{[%clk 00:14:58]} {[%emt 00:00:03]} 13. Bd3 {[%clk 00:12:38]} {[%emt 00:00:27]}
f6 {[%clk 00:14:33]} {[%emt 00:00:31]} 14. Nf1 {[%clk 00:11:56]} {[%emt
00:00:46]} Qe8 {[%clk 00:13:51]} {[%emt 00:00:48]} 15. b4 {[%clk 00:11:10]}
{[%emt 00:00:50]} Qf7 {[%clk 00:13:37]} {[%emt 00:00:19]} 16. Qb3 {[%clk
00:10:53]} {[%emt 00:00:23]} Nf4 {[%clk 00:11:34]} {[%emt 00:02:08]} 17. Bxf4
{[%clk 00:10:47]} {[%emt 00:00:11]} Bxf4 {[%clk 00:11:37]} {[%emt 00:00:02]} 18.
c4 {[%emt 00:01:47]} g5 {[%clk 00:10:04]} 19. Ne3 {[%clk 00:08:58]} {[%emt
00:01:50]} Ne7 {[%clk 00:09:11]} {[%emt 00:00:58]} 20. cxd5 {[%clk 00:06:34]}
{[%emt 00:02:29]} exd5 {[%clk 00:09:00]} {[%emt 00:00:16]} 21. Nxd5 {[%clk
00:06:25]} {[%emt 00:00:14]} Nxd5 {[%clk 00:08:36]} {[%emt 00:00:29]} 22. Bc4
{[%clk 00:06:28]} {[%emt 00:00:02]} Bc6 {[%clk 00:08:34]} {[%emt 00:00:07]} 23.
b5 {[%clk 00:06:32]} {[%emt 00:00:01]} Rfd8 {[%clk 00:08:27]} {[%emt 00:00:12]}
24. bxc6 {[%clk 00:06:15]} {[%emt 00:00:23]} bxc6 {[%clk 00:08:30]} 25. g3
{[%clk 00:05:47]} {[%emt 00:00:33]} Rab8 {[%clk 00:07:48]} {[%emt 00:00:47]} 26.
Qc2 {[%clk 00:05:26]} {[%emt 00:00:26]} Bd6 {[%clk 00:07:47]} {[%emt 00:00:06]}
27. Qf5 {[%clk 00:04:20]} {[%emt 00:01:10]} Kg7 {[%clk 00:07:13]} {[%emt
00:00:40]} 28. Rac1 {[%clk 00:04:01]} {[%emt 00:00:24]} Ba3 {[%clk 00:06:44]}
{[%emt 00:00:34]} 29. Rc2 {[%clk 00:03:30]} {[%emt 00:00:36]} Rd6 {[%clk
00:03:21]} {[%emt 00:03:29]} 30. Nd2 {[%clk 00:02:13]} {[%emt 00:01:21]} Qd7
{[%clk 00:02:29]} {[%emt 00:00:57]} 31. Qf3 {[%clk 00:01:47]} {[%emt 00:00:30]}
Bb4 {[%clk 00:02:04]} {[%emt 00:00:31]} 32. Rb1 {[%clk 00:01:48]} {[%emt
00:00:04]} f5 {[%clk 00:00:50]} {[%emt 00:01:19]} 33. a5 {[%clk 00:00:37]}
{[%emt 00:01:15]} Rb7 {[%clk 00:00:48]} {[%emt 00:00:08]} 34. Rcb2 {[%clk
00:00:28]} {[%emt 00:00:14]} Nc3 {[%clk 00:00:31]} {[%emt 00:00:22]} 35. Ra1
{[%clk 00:00:11]} {[%emt 00:00:22]} Rxd4 {[%clk 00:00:22]} {[%emt 00:00:14]} 36.
Rxb4 {[%clk 00:00:15]} {[%emt 00:00:01]} Rxb4 {[%clk 00:00:14]} {[%emt
00:00:13]} 37. Qxc3 {[%clk 00:00:18]} {[%emt 00:00:02]} c5 {[%clk 00:00:10]}
{[%emt 00:00:08]} 38. Bf1 {[%clk 00:00:09]} {[%emt 00:00:14]} Kg6 {[%clk
00:00:14]} {[%emt 00:00:01]} 39. Nf3 {[%clk 00:00:11]} {[%emt 00:00:04]} Re4
{[%clk 00:00:14]} {[%emt 00:00:06]} 40. Ne5+ {[%clk 00:00:13]} {[%emt
00:00:02]} Rxe5 {[%clk 00:00:17]} {[%emt 00:00:02]} 41. Qxe5 {[%clk 00:00:16]}
{[%emt 00:00:01]} 1-0

[Event "Rapid Tournament (RAP)"]
[Site "Biel, Switzerland"]
[Date "2026.07.12"]
[Round "5.15"]
[White "Filipovic, Branko"]
[Black "Sadeghi, Hassan Roger"]
[Result "1/2-1/2"]
[TimeControl "15 + 5"]
[WhiteTitle "-"]
[BlackTitle "-"]
[WhiteFideId "14507951"]
[BlackFideId "1304712"]
[WhiteElo "2279"]
[BlackElo "2028"]

1. d4 {[%clk 00:15:07]} {[%emt 00:00:01]} d5 {[%clk 00:15:09]} {[%emt
00:00:01]} 2. Bf4 {[%clk 00:15:09]} {[%emt 00:00:04]} c5 {[%clk 00:15:04]}
{[%emt 00:00:09]} 3. e3 {[%clk 00:15:13]} {[%emt 00:00:01]} Nc6 {[%clk
00:15:07]} {[%emt 00:00:02]} 4. Nf3 {[%clk 00:15:16]} {[%emt 00:00:02]} Bg4
{[%clk 00:15:05]} {[%emt 00:00:08]} 5. Nbd2 {[%clk 00:15:17]} {[%emt 00:00:04]}
e6 {[%clk 00:15:06]} {[%emt 00:00:04]} 6. c3 {[%clk 00:14:42]} {[%emt
00:00:40]} cxd4 {[%clk 00:15:06]} {[%emt 00:00:05]} 7. exd4 {[%clk 00:14:27]}
{[%emt 00:00:20]} Bd6 {[%clk 00:15:07]} {[%emt 00:00:04]} 8. Bxd6 {[%clk
00:13:27]} {[%emt 00:01:06]} Qxd6 {[%clk 00:15:10]} {[%emt 00:00:01]} 9. Bd3
{[%clk 00:13:23]} {[%emt 00:00:08]} Nge7 {[%emt 00:00:27]} 10. O-O {[%clk
00:13:23]} {[%emt 00:00:03]} h6 {[%clk 00:14:47]} {[%emt 00:00:10]} 11. Re1
{[%clk 00:13:01]} {[%emt 00:00:27]} O-O {[%clk 00:14:40]} {[%emt 00:00:12]} 12.
a4 {[%clk 00:12:01]} {[%emt 00:01:04]} Rac8 {[%clk 00:13:53]} {[%emt 00:00:53]}
13. a5 {[%clk 00:11:42]} {[%emt 00:00:24]} Qc7 {[%clk 00:13:08]} {[%emt
00:00:49]} 14. Qa4 {[%clk 00:11:21]} {[%emt 00:00:27]} Bf5 {[%clk 00:12:56]}
{[%emt 00:00:17]} 15. Bf1 {[%clk 00:11:21]} {[%emt 00:00:04]} Kh8 {[%clk
00:11:15]} {[%emt 00:01:46]} 16. Ne5 {[%clk 00:09:11]} {[%emt 00:02:16]} Nxe5
{[%clk 00:08:19]} {[%emt 00:03:01]} 17. dxe5 {[%clk 00:07:56]} {[%emt
00:01:20]} Nc6 {[%clk 00:07:54]} {[%emt 00:00:29]} 18. Nf3 {[%clk 00:07:59]}
{[%emt 00:00:02]} Be4 {[%clk 00:07:46]} {[%emt 00:00:13]} 19. Nd2 {[%clk
00:07:18]} {[%emt 00:00:45]} 1/2-1/2

[Event "Rapid Tournament (RAP)"]
[Site "Biel, Switzerland"]
[Date "2026.07.12"]
[Round "5.16"]
[White "Shukhman, Anna"]
[Black "Aryan, Mehta"]
[Result "1-0"]
[TimeControl "15 + 5"]
[WhiteTitle "-"]
[BlackTitle "-"]
[WhiteFideId "54180058"]
[BlackFideId "33329664"]
[WhiteElo "2272"]
[BlackElo "1921"]

1. e4 {[%clk 00:15:09]} e5 {[%clk 00:15:09]} {[%emt 00:00:04]} 2. Nf3 {[%clk
00:15:13]} Nc6 {[%clk 00:15:12]} 3. Bb5 {[%clk 00:15:17]} {[%emt 00:00:02]} a6
{[%clk 00:15:16]} 4. Ba4 {[%clk 00:15:21]} {[%emt 00:00:01]} Nf6 {[%clk
00:15:20]} {[%emt 00:00:01]} 5. O-O {[%clk 00:15:24]} {[%emt 00:00:02]} Nxe4
{[%clk 00:15:23]} {[%emt 00:00:02]} 6. Re1 {[%clk 00:15:23]} {[%emt 00:00:06]}
Nc5 {[%clk 00:15:26]} {[%emt 00:00:01]} 7. Bxc6 {[%clk 00:15:27]} {[%emt
00:00:01]} dxc6 {[%clk 00:15:29]} {[%emt 00:00:02]} 8. Nxe5 {[%clk 00:15:30]}
{[%emt 00:00:02]} Be7 {[%clk 00:15:32]} {[%emt 00:00:03]} 9. d4 {[%clk
00:15:32]} {[%emt 00:00:03]} Ne6 {[%clk 00:15:35]} 10. Be3 {[%clk 00:15:35]}
{[%emt 00:00:02]} O-O {[%clk 00:15:37]} {[%emt 00:00:03]} 11. c4 {[%clk
00:15:38]} {[%emt 00:00:03]} f6 {[%clk 00:15:10]} {[%emt 00:00:32]} 12. Nf3
{[%clk 00:15:41]} Rf7 {[%clk 00:15:08]} {[%emt 00:00:07]} 13. Nc3 {[%clk
00:15:28]} {[%emt 00:00:19]} Nf8 {[%clk 00:15:10]} {[%emt 00:00:03]} 14. Qb3
{[%clk 00:14:44]} {[%emt 00:00:49]} b5 {[%clk 00:13:22]} {[%emt 00:01:52]} 15.
d5 {[%clk 00:11:50]} {[%emt 00:02:59]} b4 {[%clk 00:11:11]} {[%emt 00:02:16]}
16. Ne4 {[%clk 00:11:32]} {[%emt 00:00:24]} cxd5 {[%clk 00:11:05]} {[%emt
00:00:11]} 17. cxd5 {[%clk 00:11:35]} {[%emt 00:00:01]} Bb7 {[%clk 00:10:36]}
{[%emt 00:00:34]} 18. Red1 {[%clk 00:10:59]} {[%emt 00:00:41]} Ng6 {[%clk
00:09:53]} {[%emt 00:00:48]} 19. Rac1 {[%clk 00:10:47]} {[%emt 00:00:18]} Bd6
{[%clk 00:09:51]} {[%emt 00:00:06]} 20. Nxd6 {[%clk 00:09:37]} {[%emt
00:01:16]} Qxd6 {[%clk 00:09:49]} {[%emt 00:00:06]} 21. Bc5 {[%clk 00:09:40]}
{[%emt 00:00:01]} Qd7 {[%clk 00:08:03]} {[%emt 00:01:51]} 22. Rd4 {[%clk
00:09:07]} {[%emt 00:00:39]} a5 {[%clk 00:07:43]} {[%emt 00:00:25]} 23. a3
{[%clk 00:09:11]} {[%emt 00:00:02]} a4 {[%clk 00:07:14]} {[%emt 00:00:34]} 24.
Qc4 {[%clk 00:07:11]} {[%emt 00:02:05]} bxa3 {[%clk 00:07:02]} {[%emt
00:00:17]} 25. Bxa3 {[%clk 00:06:14]} {[%emt 00:01:02]} Ne5 {[%clk 00:06:28]}
{[%emt 00:00:39]} 26. Nxe5 {[%clk 00:06:18]} {[%emt 00:00:01]} fxe5 {[%clk
00:06:30]} {[%emt 00:00:02]} 27. Rd2 {[%clk 00:05:56]} {[%emt 00:00:28]} Ra6
{[%clk 00:03:35]} {[%emt 00:03:00]} 28. Re1 {[%clk 00:05:52]} {[%emt 00:00:08]}
Rg6 {[%clk 00:00:46]} {[%emt 00:02:55]} 29. Rxe5 {[%clk 00:05:51]} {[%emt
00:00:06]} h6 {[%clk 00:00:37]} {[%emt 00:00:14]} 30. Qe4 {[%clk 00:05:51]}
{[%emt 00:00:04]} Qg4 {[%clk 00:00:32]} {[%emt 00:00:10]} 31. f3 {[%clk
00:03:07]} {[%emt 00:02:50]} Qd7 {[%clk 00:00:18]} {[%emt 00:00:18]} 32. Qxg6
{[%clk 00:03:09]} {[%emt 00:00:03]} 1-0